bitfinex/quotes_SOLUSD_20250118
["timestamp","ask_amount","ask_price","bid_price","bid_amount"]
[1737226922160,5.0,254.95,254.94,0.063]
[1737226922345,36.35786552,254.95,254.94,0.063]
[1737226922757,10.0,254.9,254.89,0.03]
[1737226922966,46.01676751,254.9,254.89,0.03]
[1737226923172,10.0,254.78,254.77,0.063]
[1737226923466,5.0,254.81,254.77,20.063]
[1737226923769,5.0,254.92,254.91,20.0]
[1737226923945,5.0,254.95,254.88,31.35786552]
[1737226924142,5.0,254.93,254.88,31.35786552]
[1737226924364,5.0,254.91,254.88,31.35786552]
[1737226924570,5.0,254.8,254.78,31.35786552]
[1737226924770,5.0,254.85,254.77,0.063]
[1737226924965,5.0,254.83,254.78,31.35786552]
[1737226925175,5.0,254.69,254.68,0.063]
[1737226925365,5.0,254.71,254.68,0.063]
[1737226925674,41.35786552,254.69,254.68,0.063]
[1737226926259,5.0,254.69,254.68,0.063]
[1737226926771,5.0,254.71,254.68,20.063]
[1737226926961,5.0,254.71,254.68,0.063]
[1737226927167,5.0,254.69,254.68,0.063]
[1737226927351,5.0,254.71,254.68,0.063]
[1737226927671,5.0,254.75,254.68,0.063]
[1737226927970,5.0,254.75,254.68,23.839884]
[1737226928157,10.0,254.77,254.72,20.0]
[1737226928369,5.0,254.79,254.78,20.0]
[1737226928686,36.35786552,254.81,254.78,20.0]
[1737226928687,5.0,254.81,254.78,20.0]
[1737226928852,10.0,254.81,254.78,20.0]
[1737226929053,5.0,254.86,254.82,20.0]
[1737226929254,5.0,254.87,254.86,20.0]
[1737226929464,5.0,254.83,254.76,31.35786552]
[1737226929774,10.0,254.86,254.85,23.776884]
[1737226930273,5.0,254.85,254.84,20.0]
[1737226930467,5.0,254.83,254.78,31.35786552]
[1737226930970,5.0,254.82,254.79,23.776884]
[1737226931169,5.0,254.82,254.81,20.0]
[1737226931376,10.0,254.82,254.81,20.0]
[1737226932269,5.0,254.79,254.78,20.0]
[1737226932577,10.0,254.79,254.78,20.0]
[1737226933178,10.0,254.79,254.77,43.776884]
[1737226933467,5.0,254.79,254.78,0.063]
[1737226933675,10.0,254.79,254.78,0.063]
[1737226934769,5.0,254.81,254.78,0.063]
[1737226934973,5.0,254.79,254.78,0.063]
[1737226935570,5.73586634,254.79,254.78,0.063]
[1737226937159,10.73586634,254.79,254.78,0.063]
[1737226937480,10.0,254.69,254.68,0.063]
[1737226937675,72.71573104,254.69,254.68,0.063]
[1737226937883,78.45217255,254.69,254.68,0.063]
[1737226938380,10.0,254.53,254.52,0.063]
[1737226938681,41.35786552,254.53,254.52,0.063]
[1737226938876,42.0947151,254.53,254.52,0.063]
[1737226939175,10.0,254.53,254.52,0.063]
[1737226939759,10.0,254.55,254.52,0.063]
[1737226939975,5.0,254.53,254.52,0.063]
[1737226940676,10.0,254.53,254.52,0.063]
[1737226941480,10.0,254.46,254.33,0.03]
[1737226941657,41.35786552,254.46,254.33,0.03]
[1737226941856,42.09500345,254.46,254.33,0.03]
[1737226942172,5.0,254.34,254.33,0.03]
[1737226942566,10.0,254.36,254.33,0.03]
[1737226942769,36.35786552,254.44,254.35,23.776884]
[1737226942979,5.0,254.43,254.38,20.0]
[1737226943278,5.0,254.43,254.41,20.0]
[1737226943279,5.0,254.42,254.41,20.0]
[1737226943870,36.35786552,254.44,254.41,20.0]
[1737226944065,5.0,254.43,254.42,20.0]
[1737226944378,5.0,254.42,254.37,31.35786552]
[1737226944584,31.35786552,254.5,254.42,43.776884]
[1737226944783,31.35786552,254.5,254.39,31.35786552]
[1737226944784,5.0,254.5,254.49,20.0]
[1737226945087,5.0,254.44,254.38,31.35786552]
[1737226945588,5.0,254.44,254.42,43.776884]
[1737226946084,5.0,254.5,254.46,20.0]
[1737226946284,5.0,254.48,254.45,55.13474952]
[1737226946589,5.0,254.44,254.41,31.35786552]
[1737226946759,5.0,254.5,254.44,23.776884]
[1737226946961,5.0,254.5,254.48,23.776884]
[1737226947891,5.0,254.44,254.41,31.35786552]
[1737226948186,5.0,254.43,254.39,31.35786552]
[1737226948362,5.0,254.41,254.39,31.35786552]
[1737226949282,5.0,254.41,254.4,20.0]
[1737226949665,5.0,254.34,254.33,31.38786552]
[1737226949981,10.0,254.34,254.33,0.03]
[1737226951586,5.0,254.41,254.37,23.776884]
[1737226951777,5.0,254.41,254.37,55.13474952]
[1737226951974,10.0,254.41,254.37,55.13474952]
[1737226952185,5.0,254.48,254.41,23.776884]
[1737226952380,5.0,254.46,254.44,51.35786552]
[1737226952588,10.0,254.49,254.44,51.35786552]
[1737226952767,10.0,254.49,254.46,31.35786552]
[1737226953390,5.0,254.51,254.49,23.776884]
[1737226953586,5.0,254.61,254.56,20.0]
[1737226953776,5.0,254.58,254.57,31.35786552]
[1737226954171,5.0,254.57,254.56,20.0]
[1737226954372,5.0,254.57,254.56,43.776884]
[1737226954573,5.0,254.58,254.56,51.35786552]
[1737226954880,10.0,254.51,254.48,31.35786552]
[1737226955089,5.0,254.45,254.44,31.35786552]
[1737226955262,5.0,254.6,254.33,11.6267]
[1737226955263,10.0,254.47,254.42,31.35786552]
[1737226955470,5.0,254.45,254.44,31.35786552]
[1737226955675,10.0,254.43,254.42,31.35786552]
[1737226955873,10.0,254.43,254.33,6.6267]
[1737226955874,5.0,254.41,254.4,31.35786552]
[1737226956075,5.0,254.39,254.38,31.35786552]
[1737226956291,10.0,254.39,254.36,31.35786552]
[1737226956471,5.0,254.37,254.36,31.35786552]
[1737226956875,5.0,254.39,254.36,31.35786552]
[1737226957068,5.0,254.38,254.33,0.03]
[1737226957267,5.0,254.4,254.33,0.03]
[1737226958194,5.0,254.43,254.42,20.0]
[1737226958791,5.0,254.35,254.33,0.03]
[1737226958994,10.0,254.35,254.33,0.03]
[1737226959304,0.73718914,254.34,254.33,0.03]
[1737226959672,10.0,254.35,254.33,0.03]
[1737226960293,10.73727732,254.35,254.33,0.03]
[1737226960977,10.0,254.35,254.33,0.03]
[1737226964085,24.51415885,254.34,254.33,0.03]
[1737226964289,10.0,254.25,254.19,0.03]
[1737226965107,10.0,254.25,254.2,31.35786552]
[1737226965300,10.0,254.25,254.22,31.35786552]
[1737226965475,10.0,254.27,254.24,31.38786552]
[1737226965682,10.0,254.43,254.26,51.35786552]
[1737226965683,5.0,254.28,254.26,51.35786552]
[1737226965986,5.0,254.27,254.26,51.35786552]
[1737226966397,5.0,254.28,254.26,51.35786552]
[1737226967199,5.0,254.34,254.3,20.0]
[1737226967386,10.0,254.34,254.33,31.35786552]
[1737226967583,10.0,254.32,254.31,31.35786552]
[1737226967783,10.0,254.3,254.29,31.35786552]
[1737226968181,5.0,254.3,254.29,20.0]
[1737226968386,5.0,254.3,254.29,51.35786552]
[1737226968687,5.0,254.37,254.33,20.0]
[1737226968878,5.0,254.36,254.35,20.0]
[1737226969081,5.0,254.37,254.35,20.0]
[1737226969082,5.0,254.37,254.36,20.0]
[1737226969282,5.0,254.37,254.36,31.35786552]
[1737226969504,5.0,254.4,254.36,31.35786552]
[1737226969703,5.0,254.45,254.41,20.0]
[1737226970002,5.0,254.54,254.47,20.0]
[1737226970206,5.0,254.48,254.47,51.35786552]
[1737226970407,5.063,254.51,254.47,51.35786552]
[1737226970585,0.063,254.51,254.5,55.13474952]
[1737226971401,31.35786552,254.67,254.58,20.0]
[1737226971402,5.0,254.63,254.58,20.0]
[1737226971605,5.0,254.67,254.65,20.0]
[1737226971805,10.0,254.64,254.63,31.35786552]
[1737226972012,5.0,254.61,254.6,31.35786552]
[1737226972594,5.0,254.63,254.6,31.35786552]
[1737226972905,10.0,254.61,254.6,31.35786552]
[1737226973198,10.0,254.61,254.54,6.4771]
[1737226973415,10.0,254.61,254.59,31.35786552]
[1737226973714,5.0,254.6,254.59,31.35786552]
[1737226974010,10.0,254.6,254.59,31.35786552]
[1737226974306,10.0,254.62,254.59,31.35786552]
[1737226974501,10.0,254.62,254.54,37.83496552]
[1737226974502,10.0,254.62,254.61,31.35786552]
[1737226974809,10.0,254.58,254.57,31.35786552]
[1737226975308,10.0,254.47,254.46,31.35786552]
[1737226975606,5.0,254.45,254.44,31.35786552]
[1737226976109,10.0,254.47,254.44,31.35786552]
[1737226976309,5.0,254.53,254.47,23.776884]
[1737226976508,5.0,254.52,254.51,31.35786552]
[1737226976693,5.0,254.48,254.47,31.35786552]
[1737226976895,10.0,254.48,254.47,31.35786552]
[1737226977197,10.0,254.5,254.49,20.0]
[1737226977911,5.0,254.52,254.49,51.35786552]
[1737226978108,5.0,254.44,254.43,31.35786552]
[1737226978701,10.0,254.44,254.43,31.35786552]
[1737226979104,5.0,254.42,254.41,31.35786552]
[1737226979805,5.0,254.52,254.48,20.0]
[1737226979991,10.0,254.52,254.51,31.35786552]
[1737226980196,10.0,254.5,254.49,31.35786552]
[1737226980408,10.0,254.48,254.47,31.35786552]
[1737226980711,5.0,254.46,254.45,31.35786552]
[1737226980912,5.0,254.48,254.47,20.0]
[1737226981106,5.0,254.48,254.47,51.35786552]
[1737226981311,5.0,254.5,254.47,51.35786552]
[1737226981516,5.0,254.5,254.49,31.35786552]
[1737226981806,10.0,254.5,254.49,31.35786552]
[1737226982010,31.35786552,254.67,254.43,31.35786552]
[1737226982011,10.0,254.44,254.43,31.35786552]
[1737226982305,10.0,254.44,254.41,31.35786552]
[1737226982610,10.0,254.34,254.33,31.35786552]
[1737226982815,31.35786552,254.42,254.31,31.35786552]
[1737226982816,10.0,254.32,254.31,31.35786552]
[1737226983105,5.0,254.32,254.31,31.35786552]
[1737226983489,10.0,254.32,254.31,31.35786552]
[1737226983711,10.0,254.32,254.29,31.35786552]
[1737226983891,10.0,254.28,254.27,31.35786552]
[1737226984203,10.0,254.28,254.26,0.03]
[1737226984410,5.0,254.28,254.27,31.35786552]
[1737226984790,5.0,254.3,254.27,31.35786552]
[1737226984997,10.0,254.3,254.29,31.35786552]
[1737226985198,10.0,254.28,254.26,0.03]
[1737226985399,10.0,254.28,254.27,31.35786552]
[1737226985801,10.0,254.28,254.26,0.03]
[1737226987414,0.73733034,254.27,254.26,0.03]
[1737226988327,10.0,254.28,254.27,20.0]
[1737226988506,5.0,254.28,254.27,51.35786552]
[1737226988704,10.0,254.28,254.27,20.0]
[1737226988915,10.0,254.28,254.26,0.03]
[1737226989507,10.0,254.28,254.27,31.35786552]
[1737226990725,10.0,254.28,254.26,0.03]
[1737226991507,5.0,254.28,254.27,51.35786552]
[1737226992628,3.9306,254.41,254.27,51.35786552]
[1737226992629,5.0,254.39,254.31,20.0]
[1737226992816,10.0,254.39,254.36,31.35786552]
[1737226993014,10.0,254.37,254.36,31.35786552]
[1737226993209,10.0,254.31,254.3,31.35786552]
[1737226993730,5.0,254.31,254.3,31.35786552]
[1737226994225,10.0,254.31,254.3,31.35786552]
[1737226995414,5.0,254.31,254.3,31.35786552]
[1737226995607,5.0,254.35,254.33,20.0]
[1737226995805,5.0,254.36,254.34,31.35786552]
[1737226996325,5.0,254.35,254.32,31.35786552]
[1737226996504,10.0,254.33,254.32,31.35786552]
[1737226998724,5.0,254.28,254.27,0.03]
[1737226999117,10.0,254.3,254.27,0.03]
[1737226999317,10.0,254.3,254.29,31.35786552]
[1737226999836,5.0,254.3,254.29,31.35786552]
[1737227000216,5.0,254.32,254.31,20.0]
[1737227000422,5.0,254.32,254.31,51.35786552]
[1737227000733,10.0,254.32,254.31,51.35786552]
[1737227000912,5.0,254.32,254.31,51.35786552]
[1737227001113,5.0,254.36,254.35,20.0]
[1737227001320,5.0,254.36,254.34,31.35786552]
[1737227001831,10.0,254.36,254.34,31.35786552]
[1737227002025,5.0,254.36,254.34,31.35786552]
[1737227002330,5.0,254.35,254.34,31.35786552]
[1737227002632,5.0,254.35,254.32,31.35786552]
[1737227002824,10.0,254.29,254.26,31.38786552]
[1737227003134,32.09516831,254.28,254.26,0.03]
[1737227004538,60.87205231,254.28,254.26,0.03]
[1737227005035,38.776884,254.27,254.26,0.03]
[1737227005235,33.776884,254.27,254.26,0.03]
[1737227005442,38.776884,254.27,254.26,0.03]
[1737227006936,33.776884,254.27,254.26,0.03]
[1737227007937,10.0,254.27,254.26,0.03]
[1737227008317,33.776884,254.27,254.26,0.03]
[1737227010028,10.0,254.27,254.26,0.03]
[1737227010227,10.73747865,254.27,254.26,0.03]
[1737227011330,34.51436265,254.27,254.26,0.03]
[1737227011523,39.51436265,254.27,254.26,0.03]
[1737227011921,34.51436265,254.27,254.26,0.03]
[1737227012441,10.73747865,254.27,254.26,0.03]
[1737227012634,10.0,254.27,254.26,0.03]
[1737227012843,10.73745534,254.27,254.26,0.03]
[1737227013038,34.51433934,254.27,254.26,0.03]
[1737227014123,10.73745534,254.27,254.26,0.03]
[1737227014439,10.0,254.27,254.26,0.03]
[1737227014830,65.13474952,254.27,254.26,0.03]
[1737227015040,70.13474952,254.27,254.26,0.03]
[1737227015346,41.35786552,254.27,254.26,0.03]
[1737227015542,10.0,254.27,254.26,0.03]
[1737227016246,10.0,254.27,254.26,51.38786552]
[1737227016449,10.0,254.27,254.26,31.38786552]
[1737227017147,5.0,254.42,254.29,20.0]
[1737227017148,5.0,254.31,254.29,20.0]
[1737227017326,5.0,254.31,254.3,31.35786552]
[1737227017533,5.0,254.31,254.3,20.0]
[1737227017847,10.0,254.27,254.26,0.03]
[1737227018043,65.13474952,254.27,254.26,0.03]
[1737227018247,69.80521461,254.27,254.26,0.03]
[1737227019449,65.87241461,254.27,254.26,0.03]
[1737227020729,65.93541461,254.27,254.26,0.03]
[1737227021235,42.15853061,254.27,254.26,0.03]
[1737227021537,41.42086552,254.27,254.26,0.03]
[1737227021743,10.063,254.27,254.26,0.03]
[1737227021946,10.80053152,254.27,254.26,0.03]
[1737227023737,10.063,254.27,254.26,0.03]
[1737227025049,0.063,254.27,254.26,31.38786552]
[1737227025637,0.063,254.27,254.26,31.35786552]
[1737227026938,1.5258,254.54,254.26,31.35786552]
[1737227026939,5.0,254.38,254.33,20.0]
[1737227027145,5.0,254.4,254.3,23.776884]
[1737227027146,10.0,254.4,254.39,20.0]
[1737227027545,10.0,254.56,254.44,23.776884]
[1737227027745,5.0,254.61,254.52,31.35786552]
[1737227027937,5.0,254.61,254.59,31.35786552]
[1737227028135,5.0,254.54,254.51,31.35786552]
[1737227028346,5.94123885,254.67,254.49,31.35786552]
[1737227028347,10.0,254.5,254.49,31.35786552]
[1737227028546,10.0,254.48,254.47,31.35786552]
[1737227028752,10.0,254.48,254.36,1.5894]
[1737227028753,10.0,254.43,254.41,31.35786552]
[1737227029052,5.0,254.38,254.37,31.35786552]
[1737227029356,10.0,254.4,254.37,31.35786552]
[1737227029934,10.0,254.36,254.35,31.35786552]
[1737227030132,5.0,254.33,254.32,31.35786552]
[1737227030740,10.0,254.36,254.35,20.0]
[1737227030941,5.0,254.36,254.35,51.35786552]
[1737227031151,10.0,254.36,254.35,51.35786552]
[1737227032739,10.0,254.34,254.33,31.35786552]
[1737227034467,0.73705616,254.42,254.29,31.35786552]
[1737227034468,10.0,254.3,254.29,31.35786552]
[1737227035742,10.0,254.38,254.31,43.776884]
[1737227035947,5.0,254.38,254.37,31.35786552]
[1737227036461,5.0,254.4,254.39,20.0]
[1737227036651,5.0,254.4,254.39,51.35786552]
[1737227038256,10.0,254.38,254.37,31.35786552]
[1737227038654,10.0,254.38,254.35,31.35786552]
[1737227038862,5.0,254.36,254.35,31.35786552]
[1737227039453,5.0,254.36,254.35,20.0]
[1737227039765,10.0,254.32,254.29,31.35786552]
[1737227039954,10.0,254.3,254.29,31.35786552]
[1737227040665,5.0,254.27,254.26,0.03]
[1737227040857,5.0,254.28,254.26,0.03]
[1737227041366,5.0,254.28,254.27,31.35786552]
[1737227042071,5.0,254.27,254.26,0.03]
[1737227043269,5.73742678,254.27,254.26,0.03]
[1737227043567,5.0,254.27,254.26,0.03]
[1737227046866,28.776884,254.27,254.26,0.03]
[1737227048565,5.0,254.27,254.26,0.03]
[1737227048760,5.73745981,254.27,254.26,0.03]
[1737227048960,29.51434381,254.27,254.26,0.03]
[1737227049459,5.73745981,254.27,254.26,0.03]
[1737227049856,29.51434381,254.27,254.26,0.03]
[1737227050172,34.51434381,254.27,254.26,0.03]
[1737227051077,29.51434381,254.27,254.26,0.03]
[1737227051261,34.51434381,254.27,254.26,0.03]
[1737227051456,5.0,254.13,254.12,0.03]
[1737227051664,10.0,254.13,254.12,19.3563903]
[1737227055362,33.776884,254.13,254.12,0.03]
[1737227055582,10.0,254.13,254.12,0.03]
[1737227056774,5.0,254.16,254.12,0.03]
[1737227057081,5.0,254.18,254.17,20.0]
[1737227057259,5.0,254.18,254.17,39.3263903]
[1737227057467,5.0,254.18,254.17,38.8263903]
[1737227057965,10.0,254.18,254.17,38.8263903]
[1737227058263,5.0,254.18,254.17,38.8263903]
[1737227058668,5.0,254.22,254.17,38.8263903]
[1737227058877,5.0,254.26,254.21,19.3263903]
[1737227059079,5.0,254.26,254.24,19.3263903]
[1737227059282,5.0,254.29,254.24,19.3263903]
[1737227059481,5.0,254.32,254.28,19.3263903]
[1737227059679,5.0,254.33,254.32,20.0]
[1737227060783,5.0,254.43,254.32,20.0]
[1737227060784,10.0,254.47,254.36,20.0]
[1737227061092,5.0,254.45,254.44,19.3263903]
[1737227061389,5.0,254.33,254.31,6.6225]
[1737227061572,5.0,254.33,254.28,1.5124]
[1737227061897,5.0,254.33,254.32,19.3263903]
[1737227062184,10.0,254.33,254.32,19.3263903]
[1737227062374,5.0,254.33,254.32,19.3263903]
[1737227062577,10.0,254.33,254.32,19.3263903]
[1737227064379,5.0,254.45,254.36,23.776884]
[1737227064583,5.0,254.47,254.46,20.0]
[1737227064772,5.0,254.43,254.4,19.3263903]
[1737227064971,5.0,254.4,254.38,19.3263903]
[1737227065173,5.0,254.37,254.36,19.3263903]
[1737227066491,5.0,254.37,254.28,19.3263903]
[1737227066492,5.0,254.35,254.34,19.3263903]
[1737227067587,10.0,254.38,254.37,20.0]
[1737227067779,5.0,254.42,254.37,39.3263903]
[1737227067974,5.0,254.43,254.41,19.3263903]
[1737227068174,5.0,254.44,254.41,19.3263903]
[1737227068175,5.0,254.44,254.43,20.0]
[1737227068384,5.0,254.37,254.25,23.776884]
[1737227068687,10.0,254.34,254.31,19.3263903]
[1737227068874,5.0,254.32,254.31,19.3263903]
[1737227069078,10.0,254.32,254.31,19.3263903]
[1737227069283,10.0,254.3,254.29,19.3263903]
[1737227069485,5.0,254.24,254.23,19.3263903]
[1737227069678,10.0,254.22,254.19,19.3263903]
[1737227069883,5.0,254.2,254.19,19.3263903]
[1737227070073,10.0,254.2,254.17,19.3263903]
[1737227071003,5.0,254.2,254.19,20.0]
[1737227071324,5.0,254.22,254.19,39.3263903]
[1737227071471,5.0,254.22,254.21,19.3263903]
[1737227072905,10.0,254.24,254.23,20.0]
[1737227073392,5.0,254.24,254.23,39.3263903]
[1737227073592,5.0,254.13,254.1,19.3263903]
[1737227073898,5.0,254.16,254.12,19.3563903]
[1737227074097,5.0,254.13,254.12,0.03]
[1737227074481,5.0,254.13,254.01,0.03]
[1737227074482,10.0,254.02,254.01,0.03]
[1737227074680,53.1032743,254.02,254.01,0.03]
[1737227074881,53.84166615,254.02,254.01,0.03]
[1737227075125,23.776884,254.01,253.86,6.0969387]
[1737227075300,29.3263903,253.87,253.86,6.0969387]
[1737227075494,30.06511261,253.87,253.86,6.0969387]
[1737227075827,30.06511261,253.87,253.86,0.03]
[1737227075828,29.3263903,253.87,253.86,0.03]
[1737227076118,10.0,253.87,253.86,0.03]
[1737227076418,2.70044948,253.87,253.85,0.15708549]
[1737227076715,5.0,253.9,253.87,22.776884]
[1737227076716,12.22071931,253.9,253.87,22.776884]
[1737227076901,12.22071931,253.9,253.89,38.6527806]
[1737227077104,5.0,254.0,253.89,38.6527806]
[1737227077305,11.10919888,254.02,253.97,31.4549119]
[1737227077500,5.0,254.03,253.99,31.4549119]
[1737227077703,5.0,254.03,253.81,6.2617]
[1737227077704,5.0,253.85,253.77,5.0]
[1737227077922,5.0,253.85,253.79,31.4549119]
[1737227077923,5.0,253.81,253.79,31.4549119]
[1737227078106,5.0,253.77,253.76,0.03]
[1737227078307,5.0,253.81,253.67,0.03]
[1737227078521,5.0,253.81,253.79,31.4549119]
[1737227078717,5.0,253.8,253.79,31.4549119]
[1737227079022,5.0,253.86,253.82,20.0]
[1737227079213,5.0,253.84,253.82,20.0]
[1737227079410,5.0,253.86,253.79,31.4549119]
[1737227079411,5.0,253.85,253.79,31.4549119]
[1737227079929,5.0,253.82,253.81,20.0]
[1737227080123,5.0,253.83,253.82,20.0]
[1737227080324,10.0,253.88,253.84,20.0]
[1737227080503,10.0,253.88,253.87,20.0]
[1737227080698,5.0,253.92,253.88,20.0]
[1737227081001,5.0,253.92,253.91,20.0]
[1737227081207,5.0,253.94,253.91,20.0]
[1737227081407,5.0,253.94,253.91,51.4549119]
[1737227081598,5.0,253.96,253.93,51.4549119]
[1737227081822,5.0,253.96,253.93,31.4549119]
[1737227082128,5.0,253.96,253.79,0.03]
[1737227082129,10.0,254.04,253.95,51.4549119]
[1737227082418,6.1058036,254.07,253.95,51.4549119]
[1737227082419,6.1058036,254.07,254.05,20.0]
[1737227082607,5.0,254.1,254.09,20.0]
[1737227082805,10.0,254.1,254.09,20.0]
[1737227083018,10.0,254.12,254.09,20.0]
[1737227083217,10.0,254.12,254.11,20.0]
[1737227086508,5.0,254.17,254.14,20.0]
[1737227086829,5.0,254.16,254.02,31.4549119]
[1737227087021,5.0,254.16,254.15,31.4549119]
[1737227087427,0.063,254.22,254.18,20.0]
[1737227087428,10.063,254.22,254.18,20.0]
[1737227087724,10.0,254.19,254.18,20.0]
[1737227088025,5.0,254.21,254.2,20.0]
[1737227088327,10.0,254.14,254.13,31.4549119]
[1737227088627,10.0,254.14,254.11,31.4549119]
[1737227088829,10.0,254.14,254.13,20.0]
[1737227089324,5.0,254.09,254.06,31.4549119]
[1737227090223,5.0,254.11,253.9,34.98]
[1737227090224,5.0,254.08,254.0,20.0]
[1737227090529,5.0,254.09,254.08,31.4549119]
[1737227091029,10.0,254.09,254.08,31.4549119]
[1737227091918,10.0,254.09,254.08,20.0]
[1737227092423,10.0,254.07,254.06,31.4549119]
[1737227093419,10.0,254.05,254.04,31.4549119]
[1737227093622,0.73785646,254.15,253.89,31.4549119]
[1737227093623,5.0,254.06,254.0,31.4549119]
[1737227093809,10.0,254.11,254.08,20.0]
[1737227094010,10.0,254.11,254.08,51.4549119]
[1737227094011,5.0,254.09,254.08,51.4549119]
[1737227094215,10.0,254.09,254.08,51.4549119]
[1737227094609,10.0,254.09,253.9,30.0]
[1737227094610,10.0,253.86,253.77,31.4549119]
[1737227094833,5.0,253.9,253.81,31.4549119]
[1737227095125,5.0,253.9,253.83,31.4549119]
[1737227095331,5.0,253.89,253.83,31.4549119]
[1737227095505,5.0,253.92,253.85,31.4549119]
[1737227095924,5.0,253.93,253.87,31.4549119]
[1737227096323,4.98,254.07,253.76,31.4549119]
[1737227096324,5.0,254.07,253.92,31.4549119]
[1737227096519,5.0,254.15,254.09,20.0]
[1737227096839,5.0,254.2,254.16,20.0]
[1737227097136,5.063,254.22,254.16,20.0]
[1737227097137,5.063,254.17,254.16,51.4549119]
[1737227097337,5.063,254.17,254.16,19.32663361]
[1737227098030,0.063,254.17,254.16,19.32663361]
[1737227098532,0.063,254.17,254.15,19.32663361]
[1737227099037,5.0,254.15,254.12,19.32663361]
[1737227099330,5.0,254.13,254.12,19.32663361]
[1737227099510,5.0,254.13,254.12,20.0]
[1737227100111,10.0,254.09,253.95,6.4224]
[1737227100337,0.063,254.17,254.03,19.32663361]
[1737227100338,5.0,254.06,254.03,19.32663361]
[1737227100514,10.0,254.08,254.03,19.32663361]
[1737227100717,5.0,254.05,253.96,23.776884]
[1737227100926,5.0,254.05,254.04,19.32663361]
[1737227101432,10.0,254.05,254.04,31.43586799]
[1737227101934,5.0,254.12,254.07,20.0]
[1737227102125,5.0,254.12,254.02,31.43586799]
[1737227102126,5.063,254.17,254.14,20.0]
[1737227102333,5.0,254.13,254.12,31.43586799]
[1737227102531,5.0,254.11,254.1,31.43586799]
[1737227102740,10.0,254.11,254.1,31.43586799]
[1737227103953,5.0,254.14,254.13,20.0]
[1737227104244,0.063,254.17,254.13,51.43586799]
[1737227104421,0.063,254.17,254.16,31.43586799]
[1737227104829,0.063,254.17,254.16,55.21275199]
[1737227105234,0.063,254.17,254.15,31.43586799]
[1737227105539,0.063,254.17,254.13,31.43586799]
[1737227105540,10.0,254.16,254.13,31.43586799]
[1737227105714,5.0,254.14,254.13,31.43586799]
[1737227105920,10.0,254.14,254.13,31.43586799]
[1737227106537,5.0,254.14,254.13,31.43586799]
[1737227106940,10.0,254.16,254.15,20.0]
[1737227107255,10.0,254.16,254.15,51.43586799]
[1737227107924,5.0,254.16,254.15,51.43586799]
[1737227108234,10.063,254.17,254.15,51.43586799]
[1737227109429,5.0,254.12,254.11,31.43586799]
[1737227109632,5.0,254.12,254.02,31.43586799]
[1737227109633,5.0,254.1,254.09,31.43586799]
[1737227110034,10.0,254.1,254.09,31.43586799]
[1737227110231,5.0,254.1,254.09,31.43586799]
[1737227110545,5.0,254.12,254.11,20.0]
[1737227110735,5.0,254.12,254.11,31.43586799]